fUST/lending_fUST_20240825
["ID","MTS","AMOUNT","RATE_DAILY","PERIOD"]
[335828911,1724520640340,-190.01792927,0.00013573,2]
[335828914,1724520640349,-170.27890073,0.00013573,2]
[335828916,1724520640358,-500.0,0.00013573,2]
[335828918,1724520640367,-500.0,0.00013573,2]
[335828920,1724520640377,-312.01579195,0.00013573,2]
[335828923,1724520640389,-500.0,0.00013573,2]
[335828925,1724520640403,-168.01711624,0.00013573,2]
[335828926,1724520640412,-350.02199508,0.00013573,2]
[335828927,1724520640421,-500.0,0.00013573,2]
[335828928,1724520640430,-153.9646538,0.00013589,2]
[335828929,1724520640441,-207.7300879,0.00013589,2]
[335828930,1724520640450,-408.9517048,0.00013589,2]
[335828931,1724520640460,-150.0,0.00013594,2]
[335828932,1724520640474,-843.57148644,0.00013596,2]
[335828933,1724520640491,-5395.27879719,0.00013596,2]
[335828934,1724520640500,-7981.93265453,0.00013596,2]
[335828935,1724520640509,-51373.45711384,0.00013597,2]
[335828936,1724520640520,-3163.899999,0.00013597,2]
[335829199,1724520643116,-2596.97571274,0.00012356,2]
[335829201,1724520643127,-2129.03639097,0.00012898,2]
[335829203,1724520643137,-602.18885266,0.00012971,2]
[335829205,1724520643147,-82471.61960155,0.00013597,2]
[335829214,1724520643215,-2813.29282345,0.00013597,2]
[335829499,1724520646116,-9626.55,0.00013597,2]
[335830284,1724520734427,38777.2726434,0.00012,2]
[335830288,1724520795177,3000.0,0.000136,30]
[335830289,1724520795675,3000.0,0.0001361,30]
[335830290,1724520795972,4883.001978,0.0001362,30]
[335830292,1724520813235,205.72,0.00010959,2]
[335830293,1724520813886,6025.61616752,0.00012,2]
[335830294,1724520824045,171.44,0.00010959,2]
[335830295,1724520834785,857.2,0.00010959,2]
[335830296,1724520857611,302.30925191,0.00012,2]
[335830297,1724520873963,154.84620557,0.00012,2]
[335830298,1724520912893,6747.89857333,0.00012,2]
[335830300,1724521019889,1795.92863513,0.00012,2]
[335830304,1724521251890,3628.4413195,0.00011719,2]
[335830310,1724521393446,150.0,0.000136,30]
[335830311,1724521420593,167.107483,0.00011659,2]
[335830312,1724521420806,167.107483,0.00011717,2]
[335830313,1724521495015,24900.0,0.00011464,2]
[335830314,1724521561295,1767.29008818,0.00011999,2]
[335830315,1724521576299,1767.29008818,0.00011999,2]
[335830316,1724521590171,-176.47152911,0.00012355,2]
[335830319,1724521627163,-162.5995006,0.00012162,2]
[335830320,1724521634091,-137.4004994,0.00012162,2]
[335830321,1724521634112,-300.0,0.00012162,2]
[335830322,1724521634133,-275.54451687,0.00012163,2]
[335830323,1724521691095,341.50733323,0.0001211,2]
[335830324,1724521720334,22006.00212483,0.00011999,2]
[335830329,1724521733936,15080.9653874,0.0001169,2]
[335830338,1724521756164,-1830.46450615,0.0001211,2]
[335830339,1724521758414,811.79481334,0.0001212,2]
[335830342,1724521791053,2837.16051067,0.00012256,2]
[335830359,1724521832205,-3094.20831595,0.00012356,2]
[335830360,1724521832215,-2167.30721455,0.00012356,2]
[335830361,1724521832227,-1614.23476324,0.00012356,2]
[335830362,1724521832238,-250.0,0.00012396,2]
[335830363,1724521832249,-250.0,0.0001243,2]
[335830364,1724521832260,-250.0,0.00012464,2]
[335830365,1724521832269,-250.0,0.00012498,2]
[335830366,1724521832281,-472.30208883,0.00012507,2]
[335830367,1724521832291,-300.0,0.00012515,2]
[335830369,1724521832302,-300.0,0.00012515,2]
[335830371,1724521832311,-156.92948105,0.00012516,2]
[335830372,1724521832322,-2129.03639097,0.00012516,2]
[335830373,1724521832334,-250.0,0.00012532,2]
[335830374,1724521832344,-9664.212107,0.00012551,2]
[335830375,1724521832354,-250.0,0.00012566,2]
[335830376,1724521832364,-250.0,0.000126,2]
[335830377,1724521832374,-154.72922386,0.00012629,2]
[335830378,1724521832384,-1143.0906791,0.00012629,2]
[335830379,1724521832393,-7016.80902756,0.00012629,2]
[335830380,1724521832403,-250.0,0.00012634,2]
[335830381,1724521832412,-250.0,0.00012668,2]
[335830382,1724521832424,-250.0,0.00012702,2]
[335830383,1724521832436,-250.0,0.00012736,2]
[335830384,1724521832447,-250.0,0.0001277,2]
[335830385,1724521832457,-2596.97571274,0.00012779,2]
[335830386,1724521832467,-1825.70149185,0.00012782,2]
[335830387,1724521832477,-155.21389728,0.00012782,2]
[335830388,1724521832486,-2713.96502114,0.00012782,2]
[335830389,1724521832495,-250.0,0.00012804,2]
[335830390,1724521832505,-250.0,0.00012838,2]
[335830391,1724521832514,-250.0,0.00012872,2]
[335830392,1724521832524,-390.915839,0.00012877,2]
[335830393,1724521832534,-155.18235923,0.00012886,2]
[335830394,1724521832544,-281.07945898,0.00012886,2]
[335830395,1724521832555,-320.43172091,0.00012898,2]
[335830396,1724521832571,-413.88106461,0.00012898,2]
[335830397,1724521832581,-4460.13485306,0.000129,2]
[335830398,1724521832591,-250.0,0.00012906,2]
[335830399,1724521832601,-697.50386275,0.00012934,2]
[335830400,1724521832610,-404.63763456,0.00012934,2]
[335830401,1724521832620,-182.42121049,0.00012934,2]
[335830402,1724521832630,-535.11790599,0.00012934,2]
[335830403,1724521832640,-602.18885266,0.00012934,2]
[335830404,1724521832650,-250.0,0.0001294,2]
[335830405,1724521832659,-602.18885266,0.00012971,2]
[335830406,1724521832669,-174.92435112,0.00012971,2]
[335830407,1724521832678,-2282.92421799,0.00012971,3]
[335830408,1724521832687,-250.0,0.00012974,2]
[335830409,1724521832697,-493.58061031,0.00012985,2]
[335830410,1724521832706,-154.72922386,0.00012985,2]
[335830411,1724521832716,-695.14803561,0.00012985,2]
[335830412,1724521832726,-154.72922386,0.00012989,2]
[335830413,1724521832736,-346.46491659,0.00012989,2]
[335830414,1724521832747,-309.11901389,0.00012989,2]
[335830415,1724521832758,-154.72922386,0.00012989,2]
[335830416,1724521832769,-196.90814632,0.00012989,2]
[335830417,1724521832779,-196.90814632,0.00012989,2]
[335830418,1724521832788,-665.79988618,0.00012991,2]
[335830419,1724521832798,-155.34423056,0.00012999,2]
[335830420,1724521832812,-680.78662044,0.00012999,2]
[335830421,1724521832821,-934.26607432,0.00012999,2]
[335830422,1724521832829,-264.957804,0.00013,2]
[335830423,1724521832841,-862.94176999,0.00013,2]
[335830424,1724521832850,-250.0,0.00013008,2]
[335830425,1724521832859,-521.35824671,0.00013025,2]
[335830426,1724521832869,-160.93233548,0.00013025,2]
[335830427,1724521832879,-155.07432915,0.00013025,2]
[335830428,1724521832889,-154.72922386,0.00013025,2]
[335830429,1724521832898,-155.48534041,0.00013025,2]
[335830430,1724521832908,-500.0,0.00013025,2]
[335830431,1724521832921,-296.9760015,0.00013025,2]
[335830432,1724521832931,-154.72922386,0.00013025,2]
[335830433,1724521832942,-153.0,0.00013041,2]
[335830434,1724521832952,-153.0,0.00013041,2]
[335830435,1724521832961,-250.0,0.00013042,2]
[335830436,1724521832971,-180.41738215,0.00013051,2]
[335830437,1724521832981,-376.8026316,0.00013051,2]
[335830438,1724521832992,-163.83475432,0.00013051,2]
[335830439,1724521833003,-154.94544489,0.00013051,2]
[335830440,1724521833014,-569.85049545,0.00013051,2]
[335830441,1724521833023,-157.17582995,0.00013051,2]
[335830442,1724521833033,-154.76012181,0.00013051,2]
[335830443,1724521833043,-500.34461698,0.00013051,2]
[335830444,1724521833053,-154.76012181,0.00013051,2]
[335830445,1724521833063,-883.32812457,0.00013051,2]
[335830446,1724521833072,-153.0,0.00013078,2]
[335830447,1724521833082,-150.112233,0.000131,2]
[335830448,1724521833094,-5720.57521366,0.00013163,2]
[335830449,1724521833104,-150.0,0.00013164,2]
[335830450,1724521833114,-500.0,0.00013178,2]
[335830451,1724521833124,-500.0,0.00013178,2]
[335830452,1724521833133,-150.112233,0.000132,2]
[335830453,1724521833144,-150.112233,0.000132,2]
[335830454,1724521833155,-150.112233,0.000133,2]
[335830455,1724521833164,-544.2854961,0.00013333,2]
[335830456,1724521833174,-150.112233,0.000134,2]
[335830457,1724521833184,-150.112233,0.000134,2]
[335830458,1724521833193,-4460.13485304,0.0001346,2]
[335830459,1724521833202,-286.92176757,0.00013467,2]
[335830460,1724521833211,-12635.09101799,0.00013467,2]
[335830461,1724521833276,-18.06661118,0.00013467,2]
[335830462,1724521833300,-77671.91083713,0.00013467,2]
[335830463,1724521833310,-828.50764901,0.00013496,2]
[335830464,1724521833320,-331.14753906,0.00013497,2]
[335830465,1724521833331,-211.57990216,0.00013497,2]
[335830466,1724521833341,-150.112233,0.000135,2]
[335830467,1724521833351,-331.14753903,0.00013522,2]
[335830468,1724521833360,-331.14753903,0.00013548,2]
[335830469,1724521833370,-331.14753903,0.00013573,2]
[335830470,1724521833380,-90325.0684663,0.00013588,2]
[335830471,1724521833389,-301.69894114,0.00013596,2]
[335830472,1724521833399,-2726.51380569,0.00013597,2]
[335830473,1724521833409,-31703.12701531,0.00013597,2]
[335830474,1724521833419,-440.49656002,0.00013597,2]
[335830475,1724521833428,-331.14753903,0.00013598,2]
[335830476,1724521833438,-40000.0,0.00013598,2]
[335830477,1724521833447,-215.45082928,0.00013599,2]
[335830478,1724521833457,-150.112233,0.000136,2]
[335830479,1724521833467,-150.112233,0.000136,2]
[335830480,1724521833477,-150.112233,0.000136,2]
[335830481,1724521833486,-150.112233,0.000136,2]
[335830482,1724521833496,-150.112233,0.000136,2]
[335830483,1724521833505,-150.112233,0.000136,2]
[335830484,1724521833514,-150.112233,0.000136,2]
[335830485,1724521833524,-6556.81942638,0.000136,2]
[335830486,1724521833534,-150.112233,0.000136,2]
[335830487,1724521833545,-150.112233,0.000136,2]
[335830488,1724521833557,-243.2101,0.0001363,2]
[335830489,1724521833566,-293.2909788,0.00013658,2]
[335830490,1724521833576,-21699.40794785,0.00013663,2]
[335830499,1724521842097,-324.14756528,0.00012356,2]
[335830502,1724521843493,-1973.48411658,0.00012356,2]
[335830503,1724521843503,-2129.03639097,0.00012356,2]
[335830504,1724521843512,-154.72922386,0.00012551,2]
[335830505,1724521843521,-7016.80902756,0.00012629,2]
[335830506,1724521843531,-500.0,0.00012862,2]
[335830507,1724521843540,-404.63763456,0.00012898,2]
[335830508,1724521843550,-288.18236721,0.00012971,2]
[335830509,1724521843559,-493.58061031,0.00012971,2]
[335830510,1724521843580,-154.72922386,0.00012971,2]
[335830511,1724521843589,-346.46491659,0.00012985,2]
[335830513,1724521843598,-160.46171883,0.00012999,2]
[335830514,1724521843607,-166.26547612,0.00013025,2]
[335830515,1724521843616,-68625.66051845,0.00013663,2]
[335830516,1724521843625,-500.0,0.00013673,2]
[335830517,1724521843634,-350.02199508,0.00013673,2]
[335830518,1724521843643,-500.0,0.00013673,2]
[335830519,1724521843652,-160.0,0.00013673,2]
[335830520,1724521843661,-300.0,0.00013673,2]
[335830521,1724521843671,-158.8,0.00013673,2]
[335830522,1724521843680,-190.01792927,0.00013673,2]
[335830523,1724521843689,-500.0,0.00013673,2]
[335830524,1724521843699,-170.27890073,0.00013673,2]
[335830525,1724521843708,-500.0,0.00013673,2]
[335830526,1724521843718,-500.0,0.00013673,2]
[335830527,1724521843726,-500.0,0.00013673,2]
[335830528,1724521843735,-312.01579195,0.00013673,2]
[335830529,1724521843744,-168.01711624,0.00013673,2]
[335830530,1724521843753,-600.0,0.00013676,2]
[335830531,1724521843763,-155.0,0.0001368,2]
[335830532,1724521843772,-593.72998909,0.00013688,2]
[335830533,1724521843781,-180650.136933,0.00013688,2]
[335830534,1724521843791,-163.90058454,0.00013697,2]
[335830535,1724521843801,-407.55911376,0.00013697,2]
[335830536,1724521843810,-11993.39675635,0.00013697,2]
[335830537,1724521843824,-329.47573755,0.00013698,2]
[335830538,1724521843833,-178.68656572,0.00013698,2]
[335830539,1724521843844,-285.39658371,0.00013698,2]
[335830540,1724521843853,-500.0,0.00013698,2]
[335830541,1724521843862,-275.60772808,0.00013698,2]
[335830542,1724521843873,-152.37678429,0.00013698,2]
[335830543,1724521843882,-528.75928627,0.00013698,2]
[335830544,1724521843892,-500.0,0.00013698,2]
[335830545,1724521843901,-501.76576602,0.00013698,2]
[335830546,1724521843911,-500.0,0.00013698,2]
[335830547,1724521843921,-500.0,0.00013698,2]
[335830548,1724521843931,-1009.95,0.00013698,2]
[335830549,1724521843940,-504.53621322,0.00013698,2]
[335830550,1724521843950,-500.0,0.00013698,2]
[335830551,1724521843959,-814.05,0.00013698,2]
[335830552,1724521843968,-508.01,0.00013698,2]
[335830553,1724521843978,-500.0,0.00013698,2]
[335830554,1724521843987,-969.21,0.00013698,2]
[335830555,1724521843996,-500.0,0.00013698,2]
[335830556,1724521844005,-500.0,0.00013698,2]
[335830557,1724521844014,-500.0,0.00013698,2]
[335830558,1724521844025,-640.1,0.00013698,2]
[335830559,1724521844034,-500.0,0.00013698,2]
[335830560,1724521844042,-500.0,0.00013698,2]
[335830561,1724521844052,-903.52,0.00013698,2]
[335830562,1724521844062,-808.71,0.00013698,2]
[335830563,1724521844072,-500.0,0.00013698,2]
[335830564,1724521844081,-639.31,0.00013698,2]
[335830565,1724521844090,-639.31,0.00013698,2]
[335830566,1724521844099,-639.31,0.00013698,2]
[335830567,1724521844108,-2234.05,0.00013698,2]
[335830568,1724521844117,-639.31,0.00013698,2]
[335830569,1724521844126,-639.31,0.00013698,2]
[335830570,1724521844135,-733.43,0.00013698,2]
[335830571,1724521844144,-639.31,0.00013698,2]
[335830572,1724521844153,-639.31,0.00013698,2]
[335830573,1724521844163,-639.31,0.00013698,2]
[335830574,1724521844173,-639.31,0.00013698,2]
[335830575,1724521844184,-639.31,0.00013698,2]
[335830576,1724521844194,-639.31,0.00013698,2]
[335830577,1724521844206,-639.31,0.00013698,2]
[335830578,1724521844217,-500.0,0.00013698,2]
[335830579,1724521844227,-639.31,0.00013698,2]
[335830580,1724521844237,-639.31,0.00013698,2]
[335830581,1724521844248,-639.31,0.00013698,2]
[335830582,1724521844258,-639.31,0.00013698,2]
[335830583,1724521844268,-639.31,0.00013698,2]
[335830584,1724521844277,-639.31,0.00013698,2]
[335830585,1724521844286,-639.31,0.00013698,2]
[335830586,1724521844295,-639.31,0.00013698,2]
[335830587,1724521844304,-639.31,0.00013698,2]
[335830588,1724521844314,-657.58,0.00013698,2]
[335830589,1724521844323,-639.31,0.00013698,2]
[335830590,1724521844333,-639.31,0.00013698,2]
[335830591,1724521844342,-639.31,0.00013698,2]
[335830592,1724521844354,-500.0,0.00013698,2]
[335830593,1724521844364,-500.0,0.00013698,2]
[335830594,1724521844373,-504.19437505,0.00013698,2]
[335830595,1724521844383,-500.0,0.00013698,2]
[335830596,1724521844393,-500.0,0.00013698,2]
[335830597,1724521844405,-500.0,0.00013698,2]
[335830598,1724521844415,-505.98,0.00013698,2]
[335830599,1724521844424,-500.0,0.00013698,2]
[335830600,1724521844435,-500.0,0.00013698,2]
[335830601,1724521844447,-500.0,0.00013698,2]
[335830602,1724521844458,-528.3863952,0.00013698,2]
[335830603,1724521844468,-500.0,0.00013698,2]
[335830604,1724521844478,-500.0,0.00013698,2]
[335830605,1724521844487,-500.0,0.00013698,2]
[335830606,1724521844497,-1502.47,0.00013698,2]
[335830607,1724521844507,-500.77864388,0.00013698,2]
[335830608,1724521844516,-586.88,0.00013698,2]
[335830609,1724521844525,-586.88,0.00013698,2]
[335830610,1724521844535,-586.88,0.00013698,2]
[335830611,1724521844545,-586.88,0.00013698,2]
[335830612,1724521844554,-586.88,0.00013698,2]
[335830613,1724521844565,-500.0,0.00013698,2]
[335830614,1724521844576,-586.88,0.00013698,2]
[335830615,1724521844586,-586.88,0.00013698,2]
[335830616,1724521844595,-586.88,0.00013698,2]
[335830617,1724521844605,-500.0,0.00013698,2]
[335830618,1724521844615,-586.88,0.00013698,2]
[335830619,1724521844624,-586.88,0.00013698,2]
[335830620,1724521844634,-586.88,0.00013698,2]
[335830621,1724521844644,-586.88,0.00013698,2]
[335830622,1724521844653,-586.88,0.00013698,2]
[335830623,1724521844663,-586.88,0.00013698,2]
[335830624,1724521844673,-586.88,0.00013698,2]
[335830625,1724521844682,-586.88,0.00013698,2]
[335830626,1724521844692,-500.0,0.00013698,2]
[335830627,1724521844701,-586.88,0.00013698,2]
[335830628,1724521844710,-586.88,0.00013698,2]
[335830629,1724521844720,-500.0,0.00013698,2]
[335830630,1724521844729,-586.88,0.00013698,2]
[335830631,1724521844738,-586.88,0.00013698,2]
[335830632,1724521844748,-586.88,0.00013698,2]
[335830633,1724521844757,-586.88,0.00013698,2]
[335830634,1724521844766,-500.0,0.00013698,2]
[335830635,1724521844775,-586.88,0.00013698,2]
[335830636,1724521844785,-500.0,0.00013698,2]
[335830637,1724521844795,-586.92833301,0.00013698,2]
[335830638,1724521844804,-500.0,0.00013698,2]
[335830639,1724521844814,-500.0,0.00013698,2]
[335830640,1724521844824,-500.0,0.00013698,2]
[335830641,1724521844833,-500.0,0.00013698,2]
[335830642,1724521844846,-500.0,0.00013698,2]
[335830643,1724521844856,-500.0,0.00013698,2]
[335830644,1724521844865,-546.66878442,0.00013698,2]
[335830645,1724521844874,-500.0,0.00013698,2]
[335830646,1724521844884,-500.0,0.00013698,2]
[335830647,1724521844893,-963.93,0.00013698,2]
[335830648,1724521844903,-500.0,0.00013698,2]
[335830649,1724521844912,-500.0,0.00013698,2]
[335830650,1724521844922,-500.0,0.00013698,2]
[335830651,1724521844931,-501.77925544,0.00013698,2]
[335830652,1724521844940,-500.0,0.00013698,2]
[335830653,1724521845141,-500.0,0.00013698,2]
[335830654,1724521845151,-566.27,0.00013698,2]
[335830655,1724521845162,-500.0,0.00013698,2]
[335830656,1724521845172,-500.0,0.00013698,2]
[335830657,1724521845185,-500.0,0.00013698,2]
[335830658,1724521845196,-500.0,0.00013698,2]
[335830659,1724521845205,-1498.0,0.00013698,2]
[335830660,1724521845214,-500.18172759,0.00013698,2]
[335830661,1724521845223,-500.0,0.00013698,2]
[335830662,1724521845232,-1141.16,0.00013698,2]
[335830663,1724521845243,-500.0,0.00013698,2]
[335830664,1724521845253,-500.0,0.00013698,2]
[335830665,1724521845262,-500.0,0.00013698,2]
[335830666,1724521845271,-500.0,0.00013698,2]
[335830667,1724521845281,-220.50828383,0.00013698,2]
[335830668,1724521845289,-500.0,0.00013698,2]
[335830669,1724521845299,-500.0,0.00013698,2]
[335830670,1724521845308,-160.87517627,0.00013698,2]
[335830671,1724521845318,-500.0,0.00013698,2]
[335830672,1724521845327,-500.0,0.00013698,2]
[335830673,1724521845336,-500.0,0.00013698,2]
[335830674,1724521845345,-586.53658666,0.00013698,2]
[335830675,1724521845355,-311.69,0.00013698,2]
[335830676,1724521845364,-500.0,0.00013698,2]
[335830677,1724521845373,-500.00000026,0.00013698,2]
[335830678,1724521845383,-501.47667113,0.00013698,2]
[335830679,1724521845392,-529.51635192,0.00013698,2]
[335830680,1724521845403,-198.8661596,0.00013698,2]
[335830681,1724521845413,-500.0,0.00013698,2]
[335830682,1724521845423,-500.0,0.00013698,2]
[335830683,1724521845433,-500.0,0.00013698,2]
[335830684,1724521845445,-500.0,0.00013698,2]
[335830685,1724521845455,-500.0,0.00013698,2]
[335830686,1724521845465,-500.0,0.00013698,2]
[335830687,1724521845475,-500.0,0.00013698,2]
[335830688,1724521845487,-500.0,0.00013698,2]
[335830689,1724521845499,-511.44324203,0.00013698,2]
[335830690,1724521845510,-500.0,0.00013698,2]
[335830691,1724521845520,-500.0,0.00013698,2]
[335830692,1724521845531,-500.0,0.00013698,2]
[335830693,1724521845541,-500.97197037,0.00013698,2]
[335830694,1724521845551,-500.0,0.00013698,2]
[335830695,1724521845562,-500.0,0.00013698,2]
[335830696,1724521845571,-500.0,0.00013698,2]
[335830697,1724521845581,-500.0,0.00013698,2]
[335830698,1724521845590,-500.0,0.00013698,2]
[335830699,1724521845599,-500.0,0.00013698,2]
[335830700,1724521845609,-500.0,0.00013698,2]
[335830701,1724521845618,-500.0,0.00013698,2]
[335830702,1724521845627,-500.0,0.00013698,2]
[335830703,1724521845637,-500.0,0.00013698,2]
[335830704,1724521845647,-500.0,0.00013698,2]
[335830705,1724521845656,-500.0,0.00013698,2]
[335830706,1724521845665,-500.0,0.00013698,2]
[335830707,1724521845674,-500.0,0.00013698,2]
[335830708,1724521845684,-500.0,0.00013698,2]
[335830709,1724521845693,-522.82076908,0.00013698,2]
[335830710,1724521845704,-500.0,0.00013698,2]
[335830711,1724521845713,-293.91923949,0.00013698,2]
[335830712,1724521845723,-500.0,0.00013698,2]
[335830713,1724521845732,-500.0,0.00013698,2]
[335830714,1724521845742,-1449.15,0.00013698,2]
[335830715,1724521845751,-500.0,0.00013698,2]
[335830716,1724521845760,-500.0,0.00013698,2]
[335830717,1724521845772,-500.0,0.00013698,2]
[335830718,1724521845783,-500.0,0.00013698,2]
[335830719,1724521845794,-500.0,0.00013698,2]
[335830720,1724521845805,-516.36,0.00013698,2]
[335830721,1724521845816,-500.0,0.00013698,2]
[335830722,1724521845826,-857.35,0.00013698,2]
[335830723,1724521845837,-500.0,0.00013698,2]
[335830724,1724521845849,-500.0,0.00013698,2]
[335830725,1724521845860,-500.0,0.00013698,2]
[335830726,1724521845869,-500.0,0.00013698,2]
[335830727,1724521845879,-500.0,0.00013698,2]
[335830728,1724521845888,-500.0,0.00013698,2]
[335830729,1724521845898,-500.0,0.00013698,2]
[335830730,1724521845909,-500.0,0.00013698,2]
[335830731,1724521845920,-500.0,0.00013698,2]
[335830732,1724521845931,-500.0,0.00013698,2]
[335830733,1724521845941,-500.54118398,0.00013698,2]
[335830734,1724521845952,-395.50179218,0.00013698,2]
[335830735,1724521845962,-529.43,0.00013698,2]
[335830736,1724521845971,-1435.79,0.00013698,2]
[335830737,1724521845981,-500.0,0.00013698,2]
[335830738,1724521845990,-500.0,0.00013698,2]
[335830739,1724521846000,-500.0,0.00013698,2]
[335830740,1724521846010,-500.0,0.00013698,2]
[335830741,1724521846020,-500.0,0.00013698,2]
[335830742,1724521846031,-500.0,0.00013698,2]
[335830743,1724521846042,-500.0,0.00013698,2]
[335830744,1724521846053,-500.0,0.00013698,2]
[335830745,1724521846065,-500.0,0.00013698,2]
[335830746,1724521846074,-500.0,0.00013698,2]
[335830747,1724521846084,-500.0,0.00013698,2]
[335830748,1724521846093,-500.0,0.00013698,2]
[335830749,1724521846102,-500.0,0.00013698,2]
[335830750,1724521846112,-623.57,0.00013698,2]
[335830751,1724521846120,-500.0,0.00013698,2]
[335830752,1724521846129,-1344.92,0.00013698,2]
[335830753,1724521846139,-500.0,0.00013698,2]
[335830754,1724521846149,-500.70870658,0.00013698,2]
[335830755,1724521846158,-500.0,0.00013698,2]
[335830756,1724521846168,-500.0,0.00013698,2]
[335830757,1724521846177,-500.0,0.00013698,2]
[335830758,1724521846186,-500.0,0.00013698,2]
[335830759,1724521846195,-500.0,0.00013698,2]
[335830760,1724521846204,-500.0,0.00013698,2]
[335830761,1724521846213,-500.0,0.00013698,2]
[335830762,1724521846222,-500.0,0.00013698,2]
[335830763,1724521846232,-500.0,0.00013698,2]
[335830764,1724521846241,-500.0,0.00013698,2]
[335830765,1724521846250,-669.83,0.00013698,2]
[335830766,1724521846259,-964.97,0.00013698,2]
[335830767,1724521846268,-500.0,0.00013698,2]
[335830768,1724521846277,-500.0,0.00013698,2]
[335830769,1724521846287,-1341.97,0.00013698,2]
[335830770,1724521846296,-1445.57,0.00013698,2]
[335830771,1724521846305,-500.0,0.00013698,2]
[335830772,1724521846316,-876.3,0.00013698,2]
[335830773,1724521846325,-500.0,0.00013698,2]
[335830774,1724521846334,-644.42930751,0.00013698,2]
[335830775,1724521846343,-500.0,0.00013698,2]
[335830776,1724521846353,-503.4434288,0.00013698,2]
[335830777,1724521846363,-500.0,0.00013698,2]
[335830778,1724521846372,-500.0,0.00013698,2]
[335830779,1724521846382,-500.0,0.00013698,2]
[335830780,1724521846391,-500.0,0.00013698,2]
[335830781,1724521846400,-500.0,0.00013698,2]
[335830782,1724521846409,-500.0,0.00013698,2]
[335830783,1724521846419,-500.0,0.00013698,2]
[335830784,1724521846429,-881.88,0.00013698,2]
[335830785,1724521846439,-500.0,0.00013698,2]
[335830786,1724521846448,-500.0,0.00013698,2]
[335830787,1724521846457,-500.0,0.00013698,2]
[335830788,1724521846467,-1175.35,0.00013698,2]
[335830789,1724521846476,-500.0,0.00013698,2]
[335830790,1724521846486,-500.0,0.00013698,2]
[335830791,1724521846498,-500.0,0.00013698,2]
[335830792,1724521846509,-500.0,0.00013698,2]
[335830793,1724521846519,-964.87,0.00013698,2]
[335830794,1724521846529,-500.0,0.00013698,2]
[335830795,1724521846543,-582.17,0.00013698,2]
[335830796,1724521846554,-742.31,0.00013698,2]
[335830797,1724521846563,-698.88,0.00013698,2]
[335830798,1724521846573,-500.0,0.00013698,2]
[335830799,1724521846582,-500.0,0.00013698,2]
[335830800,1724521846591,-584.56815414,0.00013698,2]
[335830801,1724521846601,-500.0,0.00013698,2]
[335830802,1724521846611,-655.35,0.00013698,2]
[335830803,1724521846622,-833.31,0.00013698,2]
[335830804,1724521846632,-500.0,0.00013698,2]
[335830805,1724521846643,-500.0,0.00013698,2]
[335830806,1724521846654,-500.0,0.00013698,2]
[335830807,1724521846663,-266.59725163,0.00013698,2]
[335830808,1724521846673,-500.0,0.00013698,2]
[335830809,1724521846683,-500.0,0.00013698,2]
[335830810,1724521846694,-500.0,0.00013698,2]
[335830811,1724521846705,-3177.52,0.00013698,2]
[335830812,1724521846716,-500.0,0.00013698,2]
[335830813,1724521846726,-500.0,0.00013698,2]
[335830814,1724521846735,-538.81262345,0.00013698,2]
[335830815,1724521846745,-2046.18,0.00013698,2]
[335830816,1724521846755,-500.0,0.00013698,2]
[335830817,1724521846766,-511.28331246,0.00013698,2]